Cogmind - Beta 13 @@@ ROGUE MODE // 2024.05.30 @ 19:46:55 Player: Enathri Result: Self-destructed Performance ------------- Evolutions (3) 1500 Regions Visited (5) 1000 Robots Destroyed (28) 140 Value Destroyed (918) 918 Prototype IDs (0) 0 Alien Tech Used (0) 0 Bonus (-238) -238 TOTAL SCORE: 3320 Bonus ------- Friendly Fire -238 Cogmind --------- Core Integrity 700/700 Matter 290/300 Energy 275/275 System Corruption 0% Temperature Cool (0) Movement Rolling (95) Ox1 Location -7/Factory Parts ------- > --- POWER (1) -------- Deuterium Engine > --- PROPULSION (4) --- Wheel Wheel > --- UTILITY (4) ------ Visual Processing Unit Improved Targeting Computer Hardened Medium Armor Plating > --- WEAPON (4) ------- Improved EM Pulse Cannon Improved Grenade Launcher > --- INVENTORY (5) ---- Large Storage Unit EM Pulse Gun Katana Peak State ------------ > --- POWER ------------ Deuterium Engine > --- PROPULSION ------- Medium Treads Medium Treads Medium Treads Medium Treads > --- UTILITY ---------- Improved Cooling System Visual Processing Unit Targeting Computer Improved Targeting Computer > --- WEAPON ----------- EM Pulse Gun Improved EM Pulse Cannon > --- INVENTORY -------- Nuclear Core EM Pulse Gun Improved EM Pulse Cannon [Rating: 33] Favorites ----------- Power Ion Engine Engine Ion Engine Power Core Nuclear Core Propulsion Medium Treads Treads Medium Treads Wheel Compact Wheel Hover Unit Backup Propulsion I Utility Visual Processing Unit Device Heat Sink Storage Small Storage Unit Processor Visual Processing Unit Protection Hardened Medium Armor Plating Weapon Light Assault Rifle Energy Gun EM Pulse Gun Energy Cannon Improved EM Pulse Cannon Ballistic Gun Light Assault Rifle Launcher Rocket Launcher Build | -11 -10 -10 -9 -8 -7 ------- Run | Yrd Mat Min Mat Mat Fac Slots Evolved 6 | . . . 2 2 2 Power . | . . . . . . Propulsion 2 | . . . 2 . . Utility 2 | . . . . 2 . Weapon 2 | . . . . . 2 Parts Attached 51 | 6 11 1 11 21 1 Power 7 | 1 1 . 3 2 . Engine 6 | 1 1 . 3 1 . Core 1 | . . . . 1 . Reactor . | . . . . . . Propulsion 14 | 2 4 . 1 7 . Treads 9 | 2 2 . . 5 . Leg . | . . . . . . Wheel 4 | . 2 . . 2 . Hover 1 | . . . 1 . . Flight . | . . . . . . Utility 14 | 1 2 . 4 6 1 Device 2 | . 1 . . 1 . Storage 5 | 1 . . 1 2 1 Processor 5 | . . . 3 2 . Hackware . | . . . . . . Protection 2 | . 1 . . 1 . Artifact . | . . . . . . Weapon 16 | 2 4 1 3 6 . Energy Gun 1 | . . . . 1 . Energy Cannon 3 | . . . . 3 . Ballistic Gun 10 | 2 4 . 3 1 . Ballistic Cannon . | . . . . . . Launcher 2 | . . 1 . 1 . Special Weapon . | . . . . . . Impact Weapon . | . . . . . . Slashing Weapon . | . . . . . . Piercing Weapon . | . . . . . . Special Melee Weapon . | . . . . . . Unidentified Prototypes . | . . . . . . Parts Lost 13 | . 1 1 5 6 . Power 1 | . . . 1 . . Propulsion 6 | . . . 3 3 . Utility 3 | . . 1 . 2 . Weapon 3 | . 1 . 1 1 . Highest Loss Streak 4 | . 1 1 2 4 . To Critical Strikes . | . . . . . . Average Slot Usage (%) 85 | . 93 88 60 90 61 Engine 10 | . 14 14 9 7 7 Treads 17 | . 17 . . 28 . Wheel 9 | . 9 28 9 6 15 Device 1 | . 4 . . 1 . Storage 6 | . 14 14 5 1 . Processor 14 | . . . 15 25 15 Protection 3 | . 5 2 . 3 7 Energy Gun 1 | . . . . 2 . Energy Cannon 2 | . . . . 6 7 Ballistic Gun 13 | . 27 15 11 5 . Launcher 3 | . . 12 5 2 7 Naked Turns . | . . . . . . Heaviest Build 90 | 12 13 16 90 50 50 Greatest Support 112 | 40 40 32 32 112 20 Greatest Overweight (x) 5 | . 4 . 5 2 2 Average Overweight (x) . | . . . . . 1 Largest Inventory Capacity 25 | 8 8 8 25 15 15 Average Capacity 8 | 7 8 8 14 6 6 Most Carried 8 | 4 8 8 8 5 5 Average Carried 4 | 3 6 7 4 2 3 Final Capacity 15 | 8 8 8 5 15 5 Final Carried 8 | 4 8 8 . 4 3 Class Distribution -------------------- 100% | Mutant Dominant Class ---------------- Mutant | -10/Materials Mutant | -10/Mines Mutant | -9/Materials Mutant | -8/Materials Mutant | -7/Factory Resources | -11 -10 -10 -9 -8 -7 ----------- Run | Yrd Mat Min Mat Mat Fac Matter Collected 961 | 228 162 123 24 424 . Remotely . | . . . . . . Salvage Created 1117 | . 184 142 28 763 . Parts 55 | . 12 4 1 38 . Haulers Intercepted . | . . . . . . Recyclers Shooed . | . . . . . . Parts Field Recycled . | . . . . . . Retrieved Matter . | . . . . . . Parts Self-Destructed . | . . . . . . Prevented . | . . . . . . Kills | -11 -10 -10 -9 -8 -7 ------- Run | Yrd Mat Min Mat Mat Fac Combat Hostiles Destroyed 22 | . 4 2 1 15 . Guns 10 | . 4 . 1 5 . Cannons 5 | . . . . 5 . AOE 7 | . . 2 . 5 . Classes Destroyed 5 | . 1 2 1 1 . Builder 4 | . . 1 . 3 . Recycler 1 | . . 1 . . . Swarmer 3 | . . . . 3 . Grunt 18 | . 4 2 . 12 . Sentry 1 | . . . 1 . . Thug 1 | . . 1 . . . Best Kill Streak 8 | . 2 2 1 8 . Combat Bots Only 5 | . 2 2 1 5 . Max Kills in Single Turn 3 | . 1 2 1 3 . Gunslinging . | . . . . . . Exploded 3 | . . 1 . 3 . Melee . | . . . . . . Uniques/NPCs Destroyed . | . . . . . . Combat | -11 -10 -10 -9 -8 -7 -------- Run | Yrd Mat Min Mat Mat Fac Hostile Shots Fired 167 | . 26 9 24 108 . Missed 44 | . 4 3 6 31 . Damage Taken 2144 | . 274 240 295 1335 . Core 353 | . 28 82 86 157 . Absorbed by Shields . | . . . . . . Redirected to Shielding 55 | . 34 21 . . . Regen/Repaired (Parts) 32 | . 32 . . . . Core Remaining (%) 76 | 100 . 56 78 71 . Volleys Fired 63 | . 17 11 4 31 . Largest 2 | . 2 2 2 2 . Hottest 109 | . 40 53 53 109 . Shots Fired 125 | . 34 23 8 60 . Gun 89 | . 34 11 4 40 . Cannon 19 | . . . . 19 . Launcher 17 | . . 12 4 1 . Special . | . . . . . . Kinetic 70 | . 34 11 4 21 . Thermal 8 | . . . . 8 . Explosive 17 | . . 12 4 1 . Electromagnetic 30 | . . . . 30 . Robot Hit Streak 28 | . 13 11 . 28 . Robot Miss Streak 2 | . 2 2 . 2 . Penetration Max . | . . . . . . Secondary Targets . | . . . . . . Shots Hit Robots 85 | . 27 6 . 52 . Core Hits 56 | . 12 10 3 31 . Critical Kills 1 | . 1 . . . . Critical Parts Destroyed . | . . . . . . Critical Strikes 1 | . 1 . . . . Destroy 1 | . 1 . . . . Melee Attacks . | . . . . . . Impact . | . . . . . . Slashing . | . . . . . . Piercing . | . . . . . . Sneak Attacks . | . . . . . . Combat Hostiles . | . . . . . . Follow-up Attacks . | . . . . . . Damage Inflicted 2130 | . 201 485 99 1345 . Guns 750 | . 201 30 22 497 . Cannons 417 | . . . . 417 . Explosions 963 | . . 455 77 431 . Melee . | . . . . . . Ramming . | . . . . . . Kinetic 514 | . 201 30 22 261 . Thermal 631 | . . . . 631 . Explosive 532 | . . 455 77 . . Electromagnetic 453 | . . . . 453 . Impact . | . . . . . . Slashing . | . . . . . . Piercing . | . . . . . . Highest Corruption 2 | . 1 1 . 2 . Average Corruption 1 | . 1 1 . 1 . Corruption Purged . | . . . . . . Corruption Blocked . | . . . . . . Effects 11 | . 3 2 . 6 . Message Errors 4 | . 2 1 . 1 . Matter Fused 3 | . 1 . . 2 . Energy Discharges 1 | . . . . 1 . Data Loss (major) 1 | . . . . 1 . Misfires 2 | . . 1 . 1 . Overload Shots . | . . . . . . Overflow Damage 79 | . . . . 79 . Projectiles 11 | . . . . 11 . Explosions 68 | . . . . 68 . Melee . | . . . . . . Knockbacks . | . . . . . . Impact . | . . . . . . Kinetic . | . . . . . . Secondary . | . . . . . . Self-Inflicted Damage 367 | . . 168 42 157 . Shots 12 | . . 6 2 4 . Rammed . | . . . . . . Targets Rammed . | . . . . . . Kicked . | . . . . . . Crushed . | . . . . . . Highest Temperature 339 | . 28 36 21 339 . Average Temperature 79 | . 11 12 15 126 . Received Heat Transfer 987 | . 156 42 105 684 . Effects 4 | . . . . 4 . Interference 3 | . . . . 3 . Short Circuit 1 | . . . . 1 . Siege Activations . | . . . . . . Robots Corrupted . | . . . . . . Combat Hostiles . | . . . . . . Parts Fried 1 | . . . . 1 . Impact Corruptions . | . . . . . . Robots Melted . | . . . . . . Combat Hostiles . | . . . . . . Parts Melted 1 | . . . . 1 . Heat Transferred 796 | . . . . 796 . Parts Sabotaged . | . . . . . . Parts Stolen . | . . . . . . Parts Stripped . | . . . . . . Power Chain Reactions 3 | . . . . 3 . Alert | -11 -10 -10 -9 -8 -7 ------- Run | Yrd Mat Min Mat Mat Fac Peak Influence 280 | . 79 161 197 280 54 Initial 83 | . . 27 62 83 54 Average 93 | . 47 76 117 132 54 Maximum Alert Level 1 | . . . . 1 . Low Security (%) 93 | 100 100 100 100 84 100 Level 1 6 | . . . . 15 . Level 2 . | . . . . . . Level 3 . | . . . . . . Level 4 . | . . . . . . Level 5 . | . . . . . . High Security . | . . . . . . Max Security . | . . . . . . Squads Dispatched 6 | . 2 . . 4 . Investigation 2 | . 1 . . 1 . Extermination . | . . . . . . Reinforcement 4 | . 1 . . 3 . Assault . | . . . . . . Garrison . | . . . . . . Intercept . | . . . . . . Searches Triggered . | . . . . . . Construction Impeded 1 | . . . . 1 . Haulers Reinforced . | . . . . . . Active Scanning Responses . | . . . . . . Cargo Convoy Interrupts . | . . . . . . Stealth | -11 -10 -10 -9 -8 -7 --------- Run | Yrd Mat Min Mat Mat Fac Distress Signals 2 | . 1 . . 1 . Communications Jammed . | . . . . . . Distress Signals . | . . . . . . Times Spotted 40 | . 11 2 7 20 . Peak Tracking Total 5 | . 4 2 3 5 . Tactical Retreats 4 | . 1 . 3 . . Traps | -11 -10 -10 -9 -8 -7 ------- Run | Yrd Mat Min Mat Mat Fac Traps Triggered 6 | . 3 . 1 2 . Indirectly . | . . . . . . Trap Hack Attempts . | . . . . . . Triggered . | . . . . . . Disarmed . | . . . . . . Reprogrammed . | . . . . . . Reused . | . . . . . . Traps Extracted . | . . . . . . Installed . | . . . . . . Triggered . | . . . . . . Machines | -11 -10 -10 -9 -8 -7 ---------- Run | Yrd Mat Min Mat Mat Fac Machines Disabled 2 | . . . 2 . . Max in Single Turn 2 | . . . 2 . . Machines Repaired . | . . . . . . Machines Dismantled . | . . . . . . Machines Sabotaged . | . . . . . . Overloaded Fab Kills . | . . . . . . Hacking | -11 -10 -10 -9 -8 -7 --------- Run | Yrd Mat Min Mat Mat Fac Machines Accessed 6 | . 2 . 1 3 . Terminals 3 | . 1 . . 2 . Fabricators . | . . . . . . Repair Stations 1 | . 1 . . . . Recycling Units 2 | . . . 1 1 . Scanalyzers . | . . . . . . Garrison Access . | . . . . . . Total Hacks 17 | . 7 . 2 8 . Successful 14 | . 5 . 2 7 . Failed 3 | . 2 . . 1 . Catastrophic 1 | . . . . 1 . Database Lockouts . | . . . . . . Manual . | . . . . . . Terminals 10 | . 3 . . 7 . Fabricators . | . . . . . . Repair Stations 4 | . 4 . . . . Recycling Units 3 | . . . 2 1 . Scanalyzers . | . . . . . . Garrison Access . | . . . . . . Terminal Hacks 8 | . 2 . . 6 . Record 5 | . 2 . . 3 . Emergency Access Points 1 | . . . . 1 . Locate Traps 1 | . . . . 1 . Dispatch Records 1 | . . . . 1 . Fabricator Hacks . | . . . . . . Repair Station Hacks 3 | . 3 . . . . Scan Component 1 | . 1 . . . . Repair 1 | . 1 . . . . Refit 1 | . 1 . . . . Recycling Unit Hacks 3 | . . . 2 1 . Report Inventory 2 | . . . 1 1 . Retrieve Components 1 | . . . 1 . . Scanalyzer . | . . . . . . Garrison Access Hacks . | . . . . . . Unauthorized Hacks . | . . . . . . Terminals . | . . . . . . Fabricators . | . . . . . . Repair Stations . | . . . . . . Recycling Units . | . . . . . . Scanalyzers . | . . . . . . Garrison Access . | . . . . . . Data Cores Recovered . | . . . . . . Used . | . . . . . . Hacking Detections 3 | . 1 . . 2 . Full Trace Events 1 | . 1 . . . . Feedback Events . | . . . . . . Feedback Blocked . | . . . . . . Robot Schematics Acquired . | . . . . . . Robots Built . | . . . . . . Authchips . | . . . . . . Time . | . . . . . . Total Robot Build Rating . | . . . . . . Part Schematics Acquired . | . . . . . . Parts Built . | . . . . . . Authchips . | . . . . . . Time . | . . . . . . Total Part Build Rating . | . . . . . . Parts Repaired 1 | . 1 . . . . Time 26 | . 26 . . . . Parts Recycled . | . . . . . . Recycled Matter . | . . . . . . Retrieved Matter . | . . . . . . Retrieved Components 3 | . . . 3 . . Parts Scanalyzed . | . . . . . . Part Schematics Acquired . | . . . . . . Parts Damaged . | . . . . . . Bothacking | -11 -10 -10 -9 -8 -7 ------------ Run | Yrd Mat Min Mat Mat Fac Used RIF Installer . | . . . . . . Robots Hacked . | . . . . . . Non-combat . | . . . . . . Combat . | . . . . . . Robot Hacks Applied . | . . . . . . Relay Couplers Released . | . . . . . . Fabnet Peak Effective % . | . . . . . . Robots Rewired . | . . . . . . Allies Hacked . | . . . . . . Hacks Repelled . | . . . . . . Allies | -11 -10 -10 -9 -8 -7 -------- Run | Yrd Mat Min Mat Mat Fac Total Allies . | . . . . . . Largest Group . | . . . . . . Highest-Rated Group . | . . . . . . Highest-Rated Ally . | . . . . . . Total Orders . | . . . . . . Ally Attacks . | . . . . . . Total Damage . | . . . . . . Kills . | . . . . . . Allies Corrupted . | . . . . . . Allies Melted . | . . . . . . Intel | -11 -10 -10 -9 -8 -7 ------- Run | Yrd Mat Min Mat Mat Fac Robot Analysis Total . | . . . . . . Derelict Logs Recovered 1 | . . 1 . . . Drone Launches . | . . . . . . Drone Recoveries . | . . . . . . Exploration | -11 -10 -10 -9 -8 -7 ------------- Run | Yrd Mat Min Mat Mat Fac Turns Passed 2263 | 162 576 189 393 921 22 Spaces Moved 1464 | 96 342 147 381 481 17 Core 158 | 3 1 . 118 36 . Treads 729 | 93 192 . . 444 . Legs . | . . . . . . Wheels 448 | . 149 147 134 1 17 Hover 129 | . . . 129 . . Flight . | . . . . . . Fastest Speed 50 | 50 100 100 50 50 95 Average Speed 125 | 156 134 100 89 152 95 Slowest Speed 250 | 160 250 100 175 240 110 Overloaded Moves . | . . . . . . Propulsion Burnouts . | . . . . . . Robots Hopped . | . . . . . . Cave-ins Triggered . | . . . . . . Exploration Rate (%) 30 | 9 44 24 33 41 . Regions Visited 5 Branch Regions 1 Pre-discovered Areas . | . . . . . . Known Exits Taken 1 | . . 1 . . . Unknown Exits Taken 4 | 1 1 . 1 1 . Scrap Searched . | . . . . . . Spaces Dug 17 | . . 17 . . . Terrain Destroyed 178 | . . 119 38 21 . Melee . | . . . . . . Projectile . | . . . . . . AOE 178 | . . 119 38 21 . Terrain Rammed . | . . . . . . Walls Destroyed . | . . . . . . Machines Disabled . | . . . . . . Actions | -11 -10 -10 -9 -8 -7 --------- Run | Yrd Mat Min Mat Mat Fac Total 1779 | 105 436 169 432 611 26 Wait 126 | . 44 9 17 56 . Move 1459 | 95 341 146 380 480 17 Hop . | . . . . . . Pick Up 28 | 4 12 . 3 8 1 Fast Attach 31 | 6 3 1 4 17 . Attach 17 | . 6 . 6 4 1 Detach 21 | . 3 1 6 8 3 Swap 3 | . 2 . 1 . . Drop 31 | . 8 1 11 7 4 Fire 63 | . 17 11 4 31 . Melee . | . . . . . . Ram . | . . . . . . Kick . | . . . . . . Crush . | . . . . . . Escape Stasis . | . . . . . . Rewire . | . . . . . . Trap . | . . . . . . Miscellaneous . | . . . . . . Route ------- -11/Scrapyard -10/Materials -10/Mines (discovered 2 exits: *Mat x2) -9/Materials -8/Materials -7/Factory History --------- Turn | Location | Event 6 | -11/Scrapyard | Discovered new exit (range 15) 163 | -11/Scrapyard | Entered Materials 316 | -10/Materials | Build established: Mutant 390 | -10/Materials | Repaired Lgt. Treads 728 | -10/Materials | Discovered new exit (range 11) 739 | -10/Materials | Entered Mines 745 | -10/Mines | Identified exit to Materials 746 | -10/Mines | Received a Rocket Launcher from a helpful Derelict 774 | -10/Mines | Met a Derelict bent on vengeance 787 | -10/Mines | Discovered exit to Materials (range 13) 928 | -10/Mines | Entered Materials 928 | -9/Materials | Evolved 2 slots: Propulsion x2 1294 | -9/Materials | Discovered new exit (range 8) 1321 | -9/Materials | Entered another Materials area 1321 | -8/Materials | Evolved 2 slots: Utility x2 1425 | -8/Materials | Met 7R-MNS 1938 | -8/Materials | Lost 4 parts (2n1u1w) 2218 | -8/Materials | Discovered new exit (range 15) 2242 | -8/Materials | Entered Factory 2242 | -7/Factory | Evolved 2 slots: Weapon x2 2243 | -7/Factory | Caught up to 7R-MNS 2264 | -7/Factory | Self-destructed Last Messages --------------- 02114_ 9FCS&B320WFZM3N O